bitfinex-derivatives/quotes_ETHF0:USTF0_20251118
["timestamp","ask_amount","ask_price","bid_price","bid_amount"]
[1763505198740,0.51859,3125.5,3125.4,1.55775925]
[1763505200140,0.51859,3125.5,3125.4,0.4253]
[1763505201035,0.51859,3125.5,3125.4,1.55775925]
[1763505201237,3.2078,3125.7,3125.5,0.2397]
[1763505201238,0.51857,3125.6,3125.5,0.2397]
[1763505201444,0.51857,3125.6,3125.5,0.6472]
[1763505202044,0.51857,3125.6,3125.5,2.34542998]
[1763505202345,0.51857,3125.6,3125.5,0.6472]
[1763505203746,0.51857,3125.6,3125.5,1.16578]
[1763505204153,0.51857,3125.6,3125.5,2.29491892]
[1763505204449,0.52144135,3125.9,3125.8,0.4075]
[1763505208749,0.52144135,3125.9,3125.8,4.13383]
[1763505209242,0.00292135,3125.9,3125.8,4.13383]
[1763505213547,0.00480161,3126.2,3126.1,0.90828]
[1763505213750,3.2078,3126.5,3126.1,0.90828]
[1763505213751,3.72623,3126.5,3126.4,0.3898]
[1763505213955,3.72623,3126.5,3126.4,0.90824]
[1763505214446,0.51843,3126.5,3126.4,0.90824]
[1763505214652,0.52235985,3126.5,3126.4,0.91234053]
[1763505215049,0.52235985,3126.5,3126.4,0.39390053]
[1763505215954,0.52235985,3126.5,3126.4,0.91234053]
[1763505216248,0.52235985,3126.5,3126.4,2.16502956]
[1763505219249,0.00392985,3126.5,3126.4,2.16502956]
[1763505219458,0.00392985,3126.5,3126.4,1.75741678]
[1763505220543,0.00392985,3126.5,3126.4,0.91234053]
[1763505222961,2.985e-05,3126.5,3126.4,0.91234053]
[1763505223158,2.985e-05,3126.5,3126.4,2.03917083]
[1763505223751,2.985e-05,3126.5,3126.4,0.91234053]
[1763505223962,2.985e-05,3126.5,3126.4,2.16502956]
[1763505224964,0.51844985,3126.5,3126.4,2.16502956]
[1763505227360,0.51844985,3126.5,3126.4,3.86325954]
[1763505229874,0.51844985,3126.5,3126.4,2.09213051]
[1763505230169,0.51844985,3126.5,3126.4,1.64658956]
[1763505230369,2.985e-05,3126.5,3126.4,0.52254053]
[1763505230562,2.985e-05,3126.5,3126.4,2.22077051]
[1763505231372,2.985e-05,3126.5,3126.4,0.52254053]
[1763505233367,3.72612,3127.1,3127.0,1.14253]
[1763505233568,3.72612,3127.1,3127.0,1.98936488]
[1763505233765,0.51832,3127.1,3127.0,1.14253]
[1763505234262,0.52190364,3127.1,3127.0,1.14253]
[1763505234770,0.52190364,3127.1,3127.0,2.27164318]
[1763505235065,3.2078,3128.3,3127.6,0.3898]
[1763505235256,3.2078,3128.3,3128.0,0.2344]
[1763505236063,3.72835435,3128.3,3128.2,0.3898]
[1763505236268,3.21023435,3128.3,3128.2,0.3898]
[1763505237063,0.00243435,3128.3,3128.2,0.3898]
[1763505240674,0.00243435,3128.3,3128.2,2.03564355]
[1763505240874,0.00480161,3128.5,3128.4,0.8583]
[1763505241369,2.4216584,3128.7,3128.6,0.85827]
[1763505241570,3.2078,3129.1,3129.0,0.5488]
[1763505241774,0.51789,3129.7,3129.5,0.2086]
[1763505241968,0.5210397,3129.7,3129.5,0.21272098]
[1763505242268,0.5210397,3129.7,3129.6,0.3402]
[1763505242978,0.0031497,3129.7,3129.6,0.3402]
[1763505243363,0.5179,3129.6,3129.5,0.21272098]
[1763505243869,0.5179,3129.6,3129.5,0.55292098]
[1763505244972,0.0031497,3129.7,3129.6,0.3402]
[1763505245472,0.5210397,3129.7,3129.6,0.3402]
[1763505247671,0.0031497,3129.7,3129.6,0.3402]
[1763505247981,0.52261424,3130.0,3129.9,0.3402]
[1763505248177,0.00477424,3130.0,3129.9,0.3402]
[1763505248483,0.52261424,3130.0,3129.9,0.3402]
[1763505250976,0.00477424,3130.0,3129.9,0.85805]
[1763505252071,0.52261424,3130.0,3129.9,0.85805]
[1763505252275,0.52261424,3130.0,3129.9,0.3402]
[1763505253286,0.00477424,3130.0,3129.9,0.85805]
[1763505253685,0.00477424,3130.0,3129.7,1.27782405]
[1763505253686,3.81616158,3130.7,3130.6,0.3402]
[1763505254886,0.51774,3130.6,3130.5,0.2086]
[1763505258482,0.51774,3130.6,3130.0,0.2086]
[1763505258483,0.51782,3130.1,3130.0,0.2086]
[1763505258681,3.72562,3130.1,3130.0,0.2086]
[1763505265295,0.5179,3129.6,3129.5,0.21272098]
[1763505265600,3.7257,3129.6,3129.5,0.21272098]
[1763505269394,3.7233,3129.6,3129.5,0.21272098]
[1763505269793,3.7233,3129.6,3129.5,2.098e-05]
[1763505269794,3.72649534,3129.6,3129.5,2.098e-05]
[1763505270703,3.72649534,3129.6,3129.0,0.2086]
[1763505270704,0.51799,3129.1,3129.0,0.2086]
[1763505270904,3.72579,3129.1,3129.0,0.2086]
[1763505271093,0.51799,3129.1,3129.0,0.2086]
[1763505271699,0.51799,3129.1,3129.0,0.21236748]
[1763505275212,1.27782405,3129.1,3128.7,0.84811518]
[1763505275403,3.72584,3128.8,3128.7,0.00479339]
[1763505275606,5.00366405,3128.8,3128.7,0.00479339]
[1763505276415,5.00366405,3128.8,3128.7,0.0076857]
[1763505276910,3.72584,3128.8,3128.7,0.0076857]
[1763505278610,3.72584,3128.8,3128.7,0.3381857]
[1763505280914,0.51804,3128.8,3128.7,0.3381857]
[1763505281611,0.51802,3128.9,3128.7,0.3381857]
[1763505281815,0.51802,3128.9,3128.8,0.3305]
[1763505282006,3.72575,3129.3,3129.2,0.3305]
[1763505283614,0.00479338,3129.4,3129.3,0.3305]
[1763505283911,0.52273338,3129.4,3129.3,0.3305]
[1763505285814,0.52273338,3129.4,3129.3,1.17447208]
[1763505286411,0.52273338,3129.4,3129.3,0.3305]
[1763505286814,0.52273338,3129.4,3129.3,1.17508727]
[1763505287015,0.52273338,3129.4,3129.3,0.3305]
[1763505297019,0.52273338,3129.4,3129.3,0.3281]
[1763505298719,0.52273338,3129.4,3129.3,1.45323592]
[1763505301325,0.51795,3129.3,3129.2,1.12513592]
[1763505301627,0.00479338,3129.4,3129.0,4.26395349]
[1763505301628,0.51799,3129.1,3129.0,4.26395349]
[1763505301920,0.51799,3129.1,3129.0,3.7651]
[1763505302116,0.51799,3129.1,3129.0,3.4194]
[1763505303617,0.51799,3129.1,3129.0,3.7651]
[1763505304025,0.51799,3129.1,3129.0,0.5573]
[1763505305817,0.51799,3129.1,3129.0,0.2116]
[1763505307019,0.51799,3129.1,3129.0,0.5573]
[1763505309427,0.51799,3129.1,3129.0,1.40172742]
[1763505310322,0.51799,3129.1,3129.0,1.05602742]
[1763505311523,0.51799,3129.1,3129.0,1.40172742]
[1763505313330,0.51799,3129.1,3129.0,0.5573]
[1763505314030,0.51799,3129.1,3129.0,1.40172742]
[1763505314231,0.51799,3129.1,3129.0,0.5573]
[1763505314424,0.51799,3129.1,3129.0,1.40172742]
[1763505314630,0.51799,3129.1,3129.0,1.68243592]
[1763505314830,3.2078,3129.3,3129.2,0.3457]
[1763505315131,3.2078,3129.3,3129.2,1.19049247]
[1763505315428,3.72575,3129.3,3129.2,1.19049247]
[1763505315823,3.72575,3129.3,3129.2,0.3457]
[1763505317429,0.51795,3129.3,3129.2,0.3457]
[1763505318831,0.51795,3129.3,3129.2,1.47083592]
[1763505319033,0.51795,3129.3,3129.2,0.3457]
[1763505319231,0.51795,3129.3,3129.2,1.47083592]
[1763505324936,0.51555,3129.3,3129.2,1.47083592]
[1763505327536,0.51555,3129.3,3129.2,0.3457]
[1763505334143,0.00479338,3129.4,3129.3,0.3268]
[1763505334337,0.00479338,3129.4,3129.3,1.45553879]
[1763505334641,0.00479338,3129.4,3129.3,0.3268]
[1763505335143,0.52273338,3129.4,3129.3,0.3268]
[1763505338253,0.52273338,3129.4,3129.3,1.45553879]
[1763505341246,0.52273338,3129.4,3129.3,1.12873879]
[1763505343438,0.52273338,3129.4,3129.3,1.45553879]
[1763505343960,0.52273338,3129.4,3129.3,0.3268]
[1763505344351,3.21099534,3129.6,3129.5,0.5184]
[1763505344542,3.72889534,3129.6,3129.5,0.5184]
[1763505347652,3.72889534,3129.6,3129.5,1.36626752]
[1763505348650,3.72889534,3129.6,3129.5,0.5184]
[1763505349754,3.72889534,3129.6,3129.5,1.36625144]
[1763505351254,3.72889534,3129.6,3129.5,1.03945144]
[1763505358667,3.72889534,3129.6,3129.5,1.36625144]
[1763505358867,3.72889534,3129.6,3129.5,1.03945144]
[1763505360376,0.52109534,3129.6,3129.5,1.03945144]
[1763505361878,3.72889534,3129.6,3129.5,1.03945144]
[1763505362174,3.72889534,3129.6,3129.5,0.1916]
[1763505362371,3.72889534,3129.6,3129.5,1.03945144]
[1763505365180,3.72889534,3129.6,3129.5,0.1916]
[1763505365874,3.72889534,3129.6,3129.5,1.03945144]
[1763505366077,3.72889534,3129.6,3129.5,0.1916]
[1763505370285,3.72889534,3129.6,3129.5,1.03945144]
[1763505370587,3.72889534,3129.6,3129.5,0.4759]
[1763505374084,0.5179,3129.6,3129.5,1.60601971]
[1763505374289,3.2078,3130.1,3130.0,0.4597]
[1763505375191,3.21125626,3130.1,3130.0,0.4597]
[1763505375892,3.72907626,3130.1,3130.0,0.4597]
[1763505379891,3.72427626,3130.1,3130.0,0.4597]
[1763505384098,3.72427626,3130.1,3130.0,0.1754]
[1763505389092,3.72427626,3130.1,3130.0,0.4616]
[1763505398306,3.72427626,3130.1,3130.0,1.02273818]
[1763505399509,3.72427626,3130.1,3130.0,1.29913818]
[1763505400306,3.72427626,3130.1,3130.0,0.4518]
[1763505403416,3.72427626,3130.1,3130.0,1.58158424]
[1763505404109,3.34056544,3130.1,3130.0,2.14864615]
[1763505404310,3.34056544,3130.1,3130.0,0.4518]
[1763505412517,0.52127626,3130.1,3130.0,0.4518]
[1763505412716,0.52127626,3130.1,3130.0,2.14864615]
[1763505413617,0.52127626,3130.1,3130.0,0.4518]
[1763505413819,0.52127626,3130.1,3130.0,2.14864615]
[1763505414617,0.52127626,3130.1,3130.0,0.4518]
[1763505416017,0.52127626,3130.1,3130.0,2.14864615]
[1763505416217,0.52127626,3130.1,3130.0,0.4518]
[1763505418521,0.52127626,3130.1,3130.0,0.1754]
[1763505419022,0.52127626,3130.1,3130.0,0.4366]
[1763505419214,0.52127626,3130.1,3130.0,0.1754]
[1763505420427,0.51785,3129.9,3129.8,1.69684615]
[1763505420724,3.21125626,3130.1,3129.6,1.95804615]
[1763505420725,0.51789,3129.7,3129.6,1.95804615]
[1763505424234,0.51789,3129.7,3129.6,1.69684615]
[1763505424432,0.5179,3129.6,3129.5,1.84484615]
[1763505425832,4.46020911,3130.1,3129.5,1.84484615]
[1763505426030,0.51784,3130.0,3129.9,0.84866015]
[1763505429633,0.51784,3130.0,3129.9,1.10986015]
[1763505429934,0.51784,3130.0,3129.9,0.2612]
[1763505430439,0.51784,3130.0,3129.8,1.13154686]
[1763505430440,0.51785,3129.9,3129.8,1.13154686]
[1763505430641,0.51787,3129.8,3129.7,1.39274686]
[1763505433545,0.51787,3129.8,3129.7,1.13154686]
[1763505433745,0.51787,3129.8,3129.7,0.84896161]
[1763505434638,0.51787,3129.8,3129.7,1.11016161]
[1763505436842,0.51787,3129.8,3129.7,0.84896161]
[1763505437040,0.51787,3129.8,3129.7,1.11016161]
[1763505442350,0.51787,3129.8,3129.7,1.11046262]
[1763505446346,0.51787,3129.8,3129.7,0.2612]
[1763505447447,0.51787,3129.8,3129.7,1.11089388]
[1763505448551,0.51789,3129.7,3129.6,0.84969388]
[1763505449146,1.24895285,3129.9,3129.5,1.27954686]
[1763505449147,0.5179,3129.6,3129.5,1.27954686]
[1763505449353,0.5179,3129.6,3129.5,0.3801]
[1763505449857,0.5179,3129.6,3129.5,0.148]
[1763505452059,0.5179,3129.6,3129.5,0.3801]
[1763505453353,0.5179,3129.6,3129.5,0.148]
[1763505456558,1.76685285,3129.6,3129.5,0.3801]
[1763505457764,1.76685285,3129.6,3129.5,0.148]
[1763505464358,0.5179,3129.6,3129.5,0.148]
[1763505464562,1.76685285,3129.6,3129.5,0.148]
[1763505466773,4.97465285,3129.6,3129.5,0.148]
[1763505467568,0.51799,3129.1,3129.0,0.2116]
[1763505467768,0.51799,3129.1,3129.0,0.4437]
[1763505474677,0.51799,3129.1,3129.0,0.2116]
[1763505479582,0.51799,3129.1,3129.0,0.4437]
[1763505481283,3.72577,3129.2,3129.1,0.2257]
[1763505484082,0.51799,3129.1,3129.0,0.2116]
[1763505484881,0.51799,3129.1,3129.0,0.4373]
[1763505490684,0.51799,3129.1,3129.0,0.2116]
[1763505491085,3.2078,3129.2,3129.0,0.4373]
[1763505491286,0.51799,3129.1,3129.0,0.4373]
[1763505493392,0.51799,3129.1,3129.0,1.56884686]
[1763505498087,0.51799,3129.1,3129.0,0.4373]
[1763505504102,0.51799,3129.1,3129.0,0.2116]
[1763505504992,0.51799,3129.1,3129.0,0.4381]
[1763505506400,0.51799,3129.1,3129.0,0.2116]
[1763505516409,1.79577886,3129.1,3129.0,0.2116]
[1763505524121,0.51799,3129.1,3129.0,0.2116]
[1763505530622,1.79577886,3129.1,3129.0,0.4507]
[1763505533525,1.79577886,3129.1,3129.0,0.2116]
[1763505534321,0.51804,3128.8,3128.7,0.0076857]
[1763505534626,0.51814,3128.2,3127.9,1.13154686]
[1763505534825,2.50974485,3128.2,3127.6,1.69684615]
[1763505535624,2.50974485,3128.2,3128.1,3.21060686]
[1763505537622,2.50974485,3128.2,3128.1,0.00280686]
[1763505539334,0.51819,3127.9,3127.8,0.00479339]
[1763505539525,2.50979485,3127.9,3127.8,0.00479339]
[1763505539830,5.71759485,3127.9,3127.8,0.00479339]
[1763505540025,4.43980599,3127.9,3127.8,0.00479339]
[1763505540429,4.44377114,3127.9,3127.8,0.00716682]
[1763505544232,3.72995515,3127.9,3127.8,0.00716682]
[1763505548044,3.92385055,3127.9,3127.0,0.1416]
[1763505548236,0.51832,3127.1,3127.0,0.1416]
[1763505549130,0.51832,3127.1,3127.0,0.14456974]
[1763505550240,0.51837,3126.8,3126.7,0.00479339]
[1763505550441,4.97756284,3126.8,3126.7,0.00479339]
[1763505551128,4.97756284,3126.8,3126.7,0.00775263]
[1763505553141,0.5184,3126.6,3126.5,0.1416]
[1763505553342,0.51848,3126.1,3126.0,0.3799]
[1763505554244,0.51848,3126.1,3126.0,0.14944241]
[1763505554548,0.51848,3126.1,3126.0,0.38224241]
[1763505554737,0.51848,3126.1,3126.0,0.14944241]
[1763505554942,1.76987284,3126.1,3126.0,0.14944241]
[1763505555237,0.51853,3125.8,3125.7,0.00479339]
[1763505555437,1.76992284,3125.8,3125.7,0.00479339]
[1763505555641,4.97772284,3125.8,3125.7,0.00479339]
[1763505556033,4.97772284,3125.8,3125.7,0.0081688]
[1763505557143,1.76992284,3125.8,3125.7,0.0081688]
[1763505557542,4.97772284,3125.8,3125.7,0.0081688]
[1763505558752,0.51857,3125.6,3125.3,3.2078]
[1763505559147,0.51857,3125.6,3125.5,0.13802924]
[1763505559337,0.51865,3125.1,3125.0,0.1471]
[1763505559541,1.77004284,3125.1,3125.0,0.1471]
[1763505560043,1.77297019,3125.1,3125.0,0.15034516]
[1763505562835,0.52157735,3125.1,3125.0,0.15034516]
[1763505563040,1.77297019,3125.1,3125.0,0.15034516]
[1763505564040,3.02436303,3125.1,3125.0,0.00324516]
[1763505564237,3.02436303,3125.1,3125.0,5.16e-06]
[1763505567450,0.51873,3124.6,3124.5,0.1471]
[1763505567747,4.97792284,3124.6,3124.5,0.1471]
[1763505568341,4.97792284,3124.6,3124.5,0.15065121]
[1763505569048,4.97792284,3124.6,3124.5,0.00355121]
[1763505569449,5.71058568,3124.6,3123.6,3.2078]
[1763505569750,1.77027284,3123.7,3123.6,3.2078]
[1763505569951,0.5189,3123.6,3123.2,3.2078]
[1763505570150,0.51895,3123.3,3123.2,3.4448]
[1763505570554,0.51895,3123.3,3123.2,3.44849182]
[1763505572349,0.00480138,3123.6,3123.5,0.3817]
[1763505572550,0.52370138,3123.6,3123.5,0.3817]
[1763505572947,0.52370138,3123.6,3123.5,0.1447]
[1763505574860,0.51895,3123.3,3123.2,0.00369182]
[1763505575157,1.77034284,3123.3,3123.2,0.00369182]
[1763505581258,2.48232182,3123.3,3123.2,0.00369182]
[1763505582057,1.77034284,3123.3,3123.2,0.00369182]
[1763505582261,2.48256576,3123.3,3123.2,0.00369182]
[1763505582863,1.23117292,3123.3,3123.2,0.24069182]
[1763505583163,1.77034284,3123.3,3123.2,0.24069182]
[1763505584258,0.51895,3123.3,3123.2,6.24069182]
[1763505584465,3.72663,3124.0,3123.9,0.237]
[1763505589368,4.44130416,3124.0,3123.9,0.237]
[1763505590866,3.72663,3124.0,3123.9,0.237]
[1763505591367,4.441958,3124.0,3123.9,0.237]
[1763505600170,0.715328,3124.0,3123.9,0.237]
[1763505600382,0.52358138,3124.3,3124.2,0.2334]
[1763505600675,2.01232284,3124.6,3124.5,0.1441]
[1763505600872,0.51873,3124.6,3124.5,0.3775]
[1763505601269,0.51872,3124.7,3124.5,0.1441]
[1763505601574,0.52157735,3125.1,3125.0,0.3775]
[1763505603275,2.735e-05,3125.1,3125.0,6.3775]
[1763505603472,6.50580138,3125.4,3125.3,0.2334]
[1763505603473,7.02440138,3125.4,3125.3,0.2334]
[1763505603670,0.52340138,3125.4,3125.3,0.2334]
[1763505604578,0.52747362,3125.4,3125.3,0.2334]
[1763505605977,0.00887362,3125.4,3125.3,0.75202]
[1763505606271,2.41454047,3125.8,3125.7,0.75195]
[1763505606471,4.75,3126.2,3126.1,0.2334]
[1763505606472,8.47627,3126.2,3126.1,0.2334]
[1763505607187,8.47952971,3126.2,3126.1,0.23608613]
[1763505607585,3.72952971,3126.2,3126.1,0.23608613]
[1763505608269,0.52172971,3126.2,3126.1,0.23608613]
[1763505613684,0.76392971,3126.2,3126.1,0.00268613]
[1763505613885,5.25182404,3126.2,3126.1,0.00268613]
[1763505615082,5.25182404,3126.2,3125.3,3.2078]
[1763505615083,0.7608,3125.4,3125.3,3.2078]
[1763505616192,0.7608,3125.4,3125.3,3.21113256]
[1763505622895,0.7608,3125.4,3125.3,3.44453256]
[1763505624298,1.48201983,3125.4,3125.3,3.44453256]
[1763505624998,0.5186,3125.4,3125.3,3.44453256]
[1763505628694,1.24060625,3125.4,3125.3,3.44453256]
[1763505629098,0.5186,3125.4,3125.3,3.44453256]
[1763505632099,0.5186,3125.4,3125.3,0.23673256]
[1763505632398,0.5186,3125.4,3125.3,3.44453256]
[1763505632696,1.24180894,3125.4,3125.3,0.23673256]
[1763505634299,0.5186,3125.4,3125.3,0.23673256]
[1763505639406,0.7571,3125.4,3125.3,0.00333256]
[1763505639702,1.48075881,3125.4,3125.3,0.00333256]
[1763505640499,0.7572,3124.8,3124.7,0.00480138]
[1763505640694,1.48085881,3124.8,3124.7,0.00480138]
[1763505641400,1.48085881,3124.8,3124.7,0.00707343]
[1763505660517,2.76095314,3124.8,3124.7,0.00707343]
[1763505666708,1.48085881,3124.8,3124.7,0.23997343]
[1763505667314,0.7572,3124.8,3124.7,0.23997343]
[1763505667616,1.48101586,3124.8,3124.7,0.23997343]
[1763505667819,1.24251586,3124.8,3124.7,0.23997343]
[1763505671114,0.72381586,3124.8,3124.7,6.75869343]
[1763505671313,3.4363,3125.3,3125.2,0.2329]
[1763505671507,3.93260075,3125.3,3125.2,0.2329]
[1763505671709,0.44286166,3125.3,3125.2,10.69345065]
[1763505671908,0.00325971,3126.2,3126.0,0.1441]
[1763505672115,0.52172971,3126.2,3126.1,0.2329]
[1763505673418,0.00325971,3126.2,3126.1,1.48565065]
[1763505673618,0.00480138,3126.5,3126.4,0.2329]
[1763505673817,0.00480138,3126.5,3126.4,2.00408065]
[1763505674622,0.00706982,3126.5,3126.4,2.00408065]
[1763505674820,0.00706982,3126.5,3126.4,8.00408065]
[1763505675022,0.51837,3126.8,3126.7,0.2329]
[1763505675322,3.4363,3127.4,3127.3,0.2329]
[1763505676028,3.43968526,3127.4,3127.3,0.23550836]
[1763505676722,3.95795526,3127.4,3127.3,0.23550836]
[1763505677522,3.95795526,3127.4,3127.3,0.00260836]
[1763505677723,0.74682,3127.1,3127.0,0.00480138]
[1763505678026,1.99957065,3127.1,3127.0,0.00480138]
[1763505678725,1.99957065,3127.1,3127.0,0.00723237]
[1763505688134,0.74682,3127.1,3127.0,0.00723237]
[1763505688326,1.99957065,3127.1,3127.0,0.00723237]
[1763505689530,0.74682,3127.1,3127.0,0.00723237]
[1763505690635,0.74682,3127.1,3127.0,0.23743237]
[1763505692333,0.51832,3127.1,3127.0,0.37603237]
[1763505699549,0.75832,3127.1,3127.0,0.00723237]
[1763505700050,0.75832,3127.1,3127.0,0.23743237]
[1763505701251,1.4777772,3127.1,3127.0,0.23743237]
[1763505716261,1.4777772,3127.1,3127.0,0.00723237]
[1763505719369,0.74645,3126.9,3126.8,3.2078]
[1763505719559,2.71865785,3126.9,3126.8,3.2078]
[1763505719760,2.71865785,3126.9,3126.8,1.70727883]
[1763505719959,0.51847,3126.2,3126.1,1.94314079]
[1763505720264,0.51847,3126.2,3126.1,3.4522]
[1763505720468,0.51847,3126.2,3126.1,3.21164282]
[1763505723467,1.25275065,3126.2,3125.8,1.70354217]
[1763505723670,1.77127065,3125.9,3125.8,0.00480138]
[1763505723965,2.49211295,3125.9,3125.8,0.00480138]
[1763505724668,2.49211295,3125.9,3125.8,0.00828255]
[1763505725972,0.51852,3125.9,3125.8,0.25268255]
[1763505751386,0.51852,3125.9,3125.8,0.00828255]
[1763505751586,1.23871743,3125.9,3125.8,0.00828255]
[1763505751985,0.51857,3125.6,3125.5,0.1366]
[1763505752687,1.23876743,3125.6,3125.5,0.1366]
[1763505752887,1.23876743,3125.6,3125.5,0.13911616]
[1763505756494,1.23876743,3125.6,3125.5,1.616e-05]
[1763505756800,0.51862,3125.3,3125.2,0.00480138]
[1763505756999,0.51865,3125.1,3125.0,0.1386]
[1763505757191,1.23852508,3125.1,3125.0,0.1386]
[1763505757597,0.51873,3124.6,3124.5,3.3427]
[1763505757798,0.51873,3124.6,3124.5,3.34657614]
[1763505758895,1.79893801,3124.6,3124.5,0.13877614]
[1763505759297,2.51760618,3124.6,3124.5,0.00387614]
[1763505759491,2.51760618,3124.6,3124.5,0.1352]
[1763505760601,2.51760618,3124.6,3124.5,0.13885482]
[1763505762097,2.51760618,3124.6,3124.5,0.37975482]
[1763505762098,0.51873,3124.6,3124.5,0.37975482]
[1763505762891,3.2078,3124.8,3124.7,0.2409]
[1763505763091,3.7265,3124.8,3124.7,0.2409]
[1763505763496,0.51873,3124.6,3124.5,0.13885482]
[1763505763700,1.79893801,3124.6,3124.5,0.13885482]
[1763505764100,0.51878,3124.3,3124.2,0.00322227]
[1763505764305,5.00678801,3124.3,3124.2,0.00322227]
[1763505765204,5.00678801,3124.3,3124.2,0.00647855]
[1763505770007,3.72658,3124.3,3124.2,0.00647855]
[1763505776015,5.00678801,3124.3,3124.2,0.00647855]
[1763505783125,5.72441259,3124.3,3124.2,0.00647855]
[1763505784219,4.44420458,3124.3,3124.2,0.00647855]
[1763505794641,4.44420458,3124.3,3124.2,0.24657855]
[1763505795837,4.44420458,3124.3,3124.2,0.00647855]
[1763505797738,4.44420458,3124.3,3124.2,0.24657855]
[1763505798343,5.6975879,3124.3,3124.2,0.24657855]
[1763505799242,2.4897879,3124.3,3124.2,0.24657855]
[1763505799441,2.4897879,3124.3,3124.2,0.00647855]
[1763505799442,5.6975879,3124.3,3124.2,0.00647855]
[1763505810945,4.44420458,3124.3,3124.2,0.25477855]
[1763505820157,3.69500458,3124.3,3124.2,0.25477855]
[1763505820454,3.7265,3124.8,3124.7,0.2447]
[1763505825159,2.826,3125.7,3125.6,0.2447]
[1763505825459,6.55235,3125.7,3125.6,0.2447]
[1763505825660,0.51857,3125.6,3125.5,0.1415]
[1763505826165,0.52263363,3125.6,3125.5,0.1415]
[1763505827864,0.52263363,3125.6,3125.5,0.3862]
[1763505828764,0.52263363,3125.6,3125.5,0.90478]
[1763505830668,0.38376265,3125.6,3125.5,0.3862]
[1763505830860,0.00406363,3125.6,3125.5,0.90478]
[1763505831668,3.363e-05,3125.6,3125.5,0.90478]
[1763505832659,0.00250984,3125.6,3125.5,0.90478]
[1763505832858,0.00480138,3125.9,3125.8,0.2447]
[1763505833470,0.52332138,3125.9,3125.8,0.2447]
[1763505833673,3.2078,3126.5,3126.4,0.2447]
[1763505833876,3.7295864,3126.5,3126.4,0.24725486]
[1763505834961,3.7295864,3126.5,3126.4,0.00255486]
[1763505835168,3.7295864,3126.5,3126.4,0.24725486]
[1763505836272,3.7295864,3126.5,3126.4,0.00255486]
[1763505836570,3.7295864,3126.5,3126.4,0.24725486]
[1763505838662,4.98296972,3126.5,3126.4,0.00255486]
[1763505839960,0.51847,3126.2,3126.1,0.00480138]
[1763505840566,1.77185332,3126.2,3126.1,0.00480138]
[1763505841068,1.77185332,3126.2,3126.1,0.00280372]
[1763505841274,1.77185332,3126.2,3125.0,0.1415]
[1763505841275,0.51857,3125.6,3125.1,3.2078]
[1763505841465,0.51863,3125.2,3125.1,3.2078]
[1763505841663,1.25338332,3126.2,3125.0,0.1415]
[1763505841664,0.51865,3125.1,3125.0,0.1415]
[1763505842065,0.51865,3125.1,3125.0,0.3949]
[1763505842271,0.51865,3125.1,3125.0,0.39899464]
[1763505843474,0.51865,3125.1,3125.0,0.14559464]
[1763505843674,0.51865,3125.1,3125.0,0.39899464]
[1763505847274,0.51865,3125.1,3125.0,0.14559464]
[1763505847473,1.77203332,3125.1,3125.0,0.14559464]
[1763505854785,0.51865,3125.1,3125.0,0.14559464]
[1763505871895,0.51865,3125.1,3125.0,0.37589464]
[1763505877095,0.51865,3125.1,3125.0,0.14559464]
[1763505888802,0.51865,3125.1,3125.0,0.00409464]
[1763505889304,0.51865,3125.1,3125.0,0.14729464]
[1763505890904,0.5187,3124.8,3124.7,0.00322227]
[1763505891105,1.79998882,3124.8,3124.7,0.00322227]
[1763505891906,1.79998882,3124.8,3124.7,0.00563624]
[1763505896511,5.00778882,3124.8,3124.7,0.00563624]
[1763505904817,3.7265,3124.8,3124.7,0.00563624]
[1763505905010,3.7265,3124.8,3124.7,0.23593624]
[1763505908519,3.7265,3124.8,3124.7,0.00563624]
[1763505916827,4.97976487,3124.8,3124.7,0.00563624]
[1763505919134,4.97976487,3124.8,3124.7,0.24453624]
[1763505920032,4.97976487,3124.8,3124.7,0.00563624]
[1763505926230,4.97976487,3124.8,3124.7,0.24123624]
[1763505929646,4.97976487,3124.8,3124.7,0.00563624]
[1763505929943,4.97976487,3124.8,3124.7,0.24363624]
[1763505933543,4.59538072,3124.8,3124.7,0.24363624]
[1763505933744,4.46106487,3124.8,3124.7,0.24363624]
[1763505934738,4.97976487,3124.8,3124.7,0.24363624]
[1763505937938,3.7265,3124.8,3124.7,0.24363624]
[1763505939055,3.7265,3124.8,3124.7,1.37260422]
[1763505939458,3.7265,3124.8,3124.7,1.89132422]
[1763505940856,0.00480138,3125.1,3125.0,0.3792]
[1763505941151,0.52345138,3125.1,3125.0,0.3792]
[1763505943852,3.2078,3125.2,3125.1,0.238]
[1763505944749,3.72643,3125.2,3125.1,0.238]
[1763505946551,0.51863,3125.2,3125.1,0.238]
[1763505953159,0.51863,3125.2,3125.1,1.49126487]
[1763505953861,0.52338138,3125.5,3125.4,0.238]
[1763505954562,0.56428138,3125.5,3125.4,0.238]
[1763505958069,0.51863,3125.2,3125.1,2.01881487]
[1763505958270,0.55953,3125.2,3125.1,0.76555]
[1763505958461,0.55953,3125.2,3125.1,0.2469]
[1763505958662,0.51863,3125.2,3125.1,0.2469]
[1763505961777,0.51863,3125.2,3125.1,0.76555]
[1763505962958,0.00480138,3125.5,3125.4,0.2469]
[1763505963362,0.52338138,3125.5,3125.4,0.2469]
[1763505963674,3.2078,3125.7,3125.6,0.2469]
[1763505964774,3.72635,3125.7,3125.6,0.2469]
[1763505965275,3.76725,3125.7,3125.6,0.2469]
[1763505965670,3.72635,3125.7,3125.6,0.2469]
[1763505968166,3.72635,3125.7,3125.6,1.37927046]
[1763505968571,3.72635,3125.7,3125.6,1.89784046]
[1763505968772,3.72635,3125.7,3125.6,0.76547]
[1763505969176,3.72635,3125.7,3125.6,1.89570484]
[1763505969782,3.72635,3125.7,3125.6,0.76547]
[1763505970080,0.51855,3125.7,3125.6,0.76547]
[1763505973084,0.51855,3125.7,3125.6,0.2469]
[1763505974193,0.51855,3125.7,3125.6,1.3768912]
[1763505975081,0.51855,3125.7,3125.6,1.8954612]
[1763505976086,0.55945,3125.7,3125.6,1.3768912]
[1763505977376,0.55945,3125.7,3125.6,1.1299912]
[1763505977577,0.55945,3125.7,3125.6,1.3768912]
[1763505977886,0.51855,3125.7,3125.6,1.3768912]
[1763505978483,0.51855,3125.7,3125.6,1.8954612]
[1763505979775,0.00480138,3126.0,3125.9,0.2469]
[1763505980681,0.55942,3125.9,3125.8,1.12980414]
[1763505980888,0.51856,3125.7,3125.6,0.2469]